bitfinex-derivatives/quotes_SOLF0:USTF0_20250530
["timestamp","ask_amount","ask_price","bid_price","bid_amount"]
[1748583595045,6.0414,165.49,165.48,39.1539]
[1748583595246,6.0414,165.49,165.48,6.3139]
[1748583597346,6.0414,165.49,165.48,4.2372]
[1748583597549,6.0414,165.49,165.48,2.1231]
[1748583599352,6.083207,165.5,165.48,2.1231]
[1748583601654,6.0414,165.49,165.48,2.1231]
[1748583602749,6.083107,165.5,165.48,2.1231]
[1748583603448,6.0414,165.49,165.48,2.1231]
[1748583606051,6.083107,165.5,165.48,2.1231]
[1748583607855,0.042007,165.5,165.48,2.1231]
[1748583608253,6.0401,165.53,165.49,32.2]
[1748583608451,32.2,165.58,165.5,2.076]
[1748583609253,0.03945544,165.56,165.52,0.03939276]
[1748583610152,6.0402,165.53,165.52,0.03939276]
[1748583613457,6.0397,165.54,165.52,0.03939276]
[1748583614759,6.0399,165.53,165.52,0.03939276]
[1748583625975,32.2,165.54,165.44,1.931]
[1748583626768,6.0421,165.48,165.44,1.931]
[1748583626965,32.2,165.54,165.44,1.931]
[1748583627165,10.73756052,165.55,165.44,1.931]
[1748583627166,0.04487716,165.48,165.44,1.931]
[1748583627373,6.08667716,165.48,165.47,0.04170183]
[1748583628572,32.2,165.57,165.47,0.04170183]
[1748583628779,32.2,165.6,165.47,32.2]
[1748583628972,32.2,165.62,165.49,6.57556052]
[1748583629173,32.2,165.62,165.5,6.0407]
[1748583629378,32.2,165.62,165.51,32.2]
[1748583629575,0.03933873,165.58,165.55,0.03901271]
[1748583629777,6.0388,165.57,165.55,0.03901271]
[1748583630780,6.0388,165.56,165.55,0.03901271]
[1748583631674,6.0385,165.57,165.55,0.03901271]
[1748583632274,0.03933873,165.58,165.55,0.03901271]
[1748583632275,6.0388,165.56,165.55,0.03901271]
[1748583635980,6.0388,165.56,165.55,1.271e-05]
[1748583660601,6.0414,165.49,165.48,32.2]
[1748583660802,10.61316052,165.57,165.47,1.9266]
[1748583661206,2.0457,165.56,165.47,1.9266]
[1748583661603,6.0416,165.49,165.47,1.9266]
[1748583664402,0.04008542,165.5,165.47,1.9266]
[1748583664909,32.66,165.6,165.49,6.0414]
[1748583665105,32.66,165.6,165.5,2.1017]
[1748583665501,6.0398,165.54,165.5,2.1017]
[1748583665910,6.0836921,165.54,165.5,2.1446642]
[1748583666703,6.04,165.53,165.5,2.1446642]
[1748583668109,6.0404,165.52,165.5,2.1446642]
[1748583669514,6.0407,165.51,165.5,2.1446642]
[1748583669710,6.0407,165.51,165.5,0.0429642]
[1748583671116,0.0438921,165.54,165.5,0.0429642]
[1748583672202,6.04,165.53,165.5,32.3629642]
[1748583672608,0.0438921,165.54,165.5,32.3629642]
[1748583672808,6.04,165.53,165.5,32.3629642]
[1748583673009,0.0438921,165.54,165.5,32.3629642]
[1748583673506,6.0406,165.52,165.5,32.3629642]
[1748583675105,0.0438921,165.54,165.5,32.3629642]
[1748583676723,0.0438921,165.54,165.52,6.04]
[1748583677217,0.0438921,165.54,165.51,4.086]
[1748583677516,6.0389,165.56,165.51,4.086]
[1748583678016,2.1137,165.61,165.52,6.0402]
[1748583678222,34.18,165.63,165.52,6.57556052]
[1748583678425,0.03881305,165.59,165.56,0.04241585]
[1748583679425,6.0384,165.58,165.56,0.04241585]
[1748583680020,6.07651305,165.59,165.56,0.04241585]
[1748583680216,0.03881305,165.59,165.56,0.04241585]
[1748583681930,6.07651305,165.59,165.56,0.04241585]
[1748583685720,6.0381,165.58,165.56,0.04241585]
[1748583692526,6.07661305,165.59,165.56,0.04241585]
[1748583694534,6.0385,165.57,165.56,0.04241585]
[1748583694738,0.03881305,165.59,165.5,34.16]
[1748583694931,6.0402,165.53,165.5,34.16]
[1748583695134,4.0601,165.58,165.5,34.16]
[1748583695828,4.0601,165.58,165.52,0.04182441]
[1748583695829,0.04321108,165.56,165.52,0.04182441]
[1748583697036,6.0399,165.53,165.52,0.04182441]
[1748583697430,0.04321108,165.56,165.46,34.16]
[1748583697625,6.0413,165.5,165.46,34.16]
[1748583697931,34.16,165.55,165.46,34.16]
[1748583698534,0.04399855,165.52,165.49,0.03987654]
[1748583699131,6.041,165.5,165.49,0.03987654]
[1748583710340,6.041,165.5,165.49,7.654e-05]
[1748583711843,6.0439,165.42,165.41,33.8]
[1748583712345,33.8,165.47,165.37,35.9262]
[1748583712546,6.0444,165.41,165.37,41.972]
[1748583712941,6.08597833,165.41,165.37,42.01750211]
[1748583713139,0.04157833,165.41,165.37,42.01750211]
[1748583713836,6.08587833,165.41,165.37,42.01750211]
[1748583714850,6.0448,165.4,165.37,42.01750211]
[1748583717045,0.04157833,165.41,165.38,6.57556052]
[1748583717248,33.8,165.47,165.38,6.57556052]
[1748583717445,6.0436,165.43,165.4,6.0444]
[1748583718253,0.03906631,165.43,165.4,6.09079739]
[1748583721151,0.03906631,165.43,165.41,33.82]
[1748583721350,0.03906631,165.43,165.41,37.9207]
[1748583721749,0.03906631,165.43,165.42,6.0439]
[1748583723960,0.03906631,165.43,165.41,43.9649]
[1748583726759,0.03906631,165.43,165.41,37.9207]
[1748583727461,6.08286631,165.43,165.41,33.82]
[1748583727655,0.03906631,165.43,165.41,33.82]
[1748583729058,6.08276631,165.43,165.41,33.82]
[1748583732155,0.03906631,165.43,165.41,33.82]
[1748583732656,6.08296631,165.43,165.41,33.82]
[1748583732857,0.03906631,165.43,165.41,33.82]
[1748583734161,6.0439,165.42,165.41,33.82]
[1748583736060,0.03906631,165.43,165.41,33.82]
[1748583736563,6.08266631,165.43,165.41,33.82]
[1748583736957,6.0439,165.42,165.41,33.82]
[1748583737259,0.03906631,165.43,165.41,33.82]
[1748583738364,6.08286631,165.43,165.41,33.82]
[1748583739359,6.044,165.42,165.4,0.04639739]
[1748583739567,0.03906631,165.43,165.4,0.04639739]
[1748583740166,6.08286631,165.43,165.4,0.04639739]
[1748583740566,0.03906631,165.43,165.4,0.04639739]
[1748583740766,6.044,165.42,165.4,0.04639739]
[1748583743971,6.08276631,165.43,165.4,0.04639739]
[1748583744668,6.044,165.42,165.4,0.04639739]
[1748583746666,6.0443,165.41,165.4,0.04639739]
[1748583746979,0.03906631,165.43,165.4,0.04639739]
[1748583747272,6.0443,165.42,165.4,0.04639739]
[1748583747471,0.03906631,165.43,165.4,0.04639739]
[1748583748066,6.0443,165.41,165.4,0.04639739]
[1748583757075,6.0458,165.37,165.36,4.20850807]
[1748583757984,33.64,165.43,165.35,0.0398567]
[1748583757985,0.04403373,165.38,165.35,0.0398567]
[1748583758380,6.0461,165.36,165.35,0.0398567]
[1748583759979,6.0475,165.33,165.29,39.6886]
[1748583760294,33.64,165.39,165.29,39.6886]
[1748583760987,0.04515394,165.36,165.32,0.03873749]
[1748583761587,6.0472,165.34,165.32,0.03873749]
[1748583761981,0.04515394,165.36,165.32,0.03873749]
[1748583762381,6.0471,165.34,165.32,0.03873749]
[1748583762985,6.0472,165.33,165.32,0.03873749]
[1748583764290,6.047,165.34,165.32,0.03873749]
[1748583764593,0.04515394,165.36,165.32,0.03873749]
[1748583764888,6.0467,165.35,165.32,0.03873749]
[1748583765090,0.04515394,165.36,165.32,0.03873749]
[1748583765594,6.0468,165.35,165.32,0.03873749]
[1748583765793,0.04515394,165.36,165.32,0.03873749]
[1748583766494,6.0471,165.34,165.32,0.03873749]
[1748583766895,6.0472,165.33,165.32,0.03873749]
[1748583782911,6.047,165.34,165.32,0.03873749]
[1748583783809,6.0472,165.33,165.32,0.03873749]
[1748583797622,6.0472,165.33,165.32,3.749e-05]
[1748583797923,10.2596049,165.33,165.32,3.749e-05]
[1748583802311,6.0472,165.33,165.32,3.749e-05]
[1748583829439,10.2596049,165.33,165.32,3.749e-05]
[1748583834937,6.0472,165.33,165.32,3.749e-05]
[1748583835137,10.2596049,165.33,165.32,3.749e-05]
[1748583838350,6.0472,165.33,165.32,3.749e-05]
[1748583838749,10.2596049,165.33,165.32,3.749e-05]
[1748583844051,6.0472,165.33,165.32,3.749e-05]
[1748583845453,0.04515394,165.36,165.32,3.749e-05]
[1748583845654,0.04515394,165.36,165.33,4.2124049]
[1748583845952,6.0465,165.35,165.33,4.2124049]
[1748583846147,0.04515394,165.36,165.33,4.2124049]
[1748583846352,0.04515394,165.36,165.33,10.2596049]
[1748583847454,0.04515394,165.36,165.32,10.27624239]
[1748583848563,0.04515394,165.36,165.34,4.2124049]
[1748583850160,0.04515394,165.36,165.34,35.8524049]
[1748583851159,6.09125394,165.36,165.34,35.8524049]
[1748583853558,6.09125394,165.36,165.34,31.64]
[1748583853559,6.0465,165.35,165.34,31.64]
[1748583853866,0.04515394,165.36,165.32,6.06383749]
[1748583854164,0.04515394,165.36,165.32,3.749e-05]
[1748583855168,6.0472,165.33,165.32,3.749e-05]
[1748583858864,0.04515394,165.36,165.32,4.21244239]
[1748583859468,6.09135394,165.36,165.32,4.21244239]
[1748583860256,6.0466,165.35,165.32,10.26004239]
[1748583861866,0.04515394,165.36,165.32,4.21244239]
[1748583862062,0.04515394,165.36,165.34,4.2124049]
[1748583863170,0.04515394,165.36,165.34,10.2590049]
[1748583863760,0.04515394,165.36,165.35,6.0465]
[1748583864172,0.04515394,165.36,165.35,37.6665]
[1748583864376,0.04515394,165.36,165.35,31.62]
[1748583865472,0.04515394,165.36,165.35,37.6665]
[1748583865672,0.04515394,165.36,165.35,31.62]
[1748583871775,6.09125394,165.36,165.35,31.62]
[1748583874674,543.11727296,165.52,165.35,31.62]
[1748583874974,4.2124049,165.44,165.36,4.2124049]
[1748583875375,6.0457,165.38,165.36,4.2124049]
[1748583876471,6.0458,165.37,165.36,4.2124049]
[1748583877381,6.0455,165.38,165.36,4.2124049]
[1748583879878,6.0862391,165.39,165.36,10.2585049]
[1748583880976,0.0410391,165.39,165.37,6.0457]
[1748583881176,0.0410391,165.39,165.38,4.2124049]
[1748583882284,0.0410391,165.39,165.38,10.2578049]
[1748583882485,162.64117356,165.46,165.38,10.2578049]
[1748583882486,158.42876866,165.46,165.38,4.2124049]
[1748583882785,158.42876866,165.46,165.4,4.2124049]
[1748583883381,0.04270776,165.45,165.41,0.04115963]
[1748583883783,6.044,165.42,165.41,0.04115963]
[1748583884181,6.044,165.42,165.41,5.963e-05]
[1748583914509,10.25202841,165.42,165.41,5.963e-05]
[1748583914716,41.81202841,165.42,165.41,5.963e-05]
[1748583924613,41.81202841,165.42,165.3,31.52]
[1748583924614,41.80802841,165.42,165.3,31.52]
[1748583924812,4.20802841,165.36,165.3,31.52]
[1748583925014,4.20802841,165.36,165.29,4.20802841]
[1748583925414,6.0483,165.3,165.27,37.6517]
[1748583925718,6.0483,165.3,165.28,4.20802841]
[1748583925719,0.04176403,165.3,165.28,4.20802841]
[1748583926714,0.04176403,165.3,165.27,37.69536067]
[1748583926917,0.04176403,165.3,165.28,4.20802841]
[1748583927123,6.0487,165.29,165.28,4.20802841]
[1748583927318,0.04176403,165.3,165.28,4.20802841]
[1748583928021,6.09016403,165.3,165.28,4.20802841]
[1748583932124,0.04176403,165.3,165.28,4.20802841]
[1748583933432,0.04176403,165.3,165.28,10.25712841]
[1748583933734,0.04176403,165.3,165.28,4.20802841]
[1748583935231,6.09016403,165.3,165.28,4.20802841]
[1748583935833,0.04176403,165.3,165.27,161.02338908]
[1748583936533,0.04176403,165.3,165.27,41.90338908]
[1748583936934,0.04176403,165.3,165.27,33.52536067]
[1748583937433,6.0491,165.28,165.27,33.52536067]
[1748583940133,6.0491,165.28,165.27,0.04366067]
[1748583953345,6.0491,165.28,165.27,6.067e-05]
[1748583961352,6.0518,165.21,165.18,31.48]
[1748583961549,4.20802841,165.25,165.18,31.48]
[1748583961954,6.0523,165.2,165.18,31.48]
[1748583962255,4.20802841,165.25,165.18,31.48]
[1748583962454,0.04112346,165.23,165.2,0.038501]
[1748583962950,6.0516,165.21,165.2,0.038501]
[1748583966552,0.04112346,165.23,165.2,4.24652941]
[1748583966752,0.04112346,165.23,165.2,10.29822941]
[1748583966952,0.04112346,165.23,165.2,4.24652941]
[1748583967152,6.09232346,165.23,165.2,4.24652941]
[1748583968558,6.0513,165.22,165.2,4.24652941]
[1748583968856,6.0513,165.22,165.2,0.038501]
[1748583970259,6.09212346,165.23,165.2,0.038501]
[1748583970458,0.04112346,165.23,165.2,0.038501]
[1748583971655,6.0516,165.21,165.2,0.038501]
[1748583982366,6.0533,165.17,165.15,31.5]
[1748583985957,6.0535,165.16,165.15,31.5]
[1748583987972,6.0532,165.17,165.15,31.5]
[1748583988870,6.0535,165.16,165.15,31.5]
[1748583990068,6.0532,165.17,165.15,31.5]
[1748583996172,6.09900938,165.18,165.16,4.20802841]
[1748583996471,0.04620938,165.18,165.16,4.20802841]
[1748583996674,0.04620938,165.18,165.16,10.26122841]
[1748583996876,0.04620938,165.18,165.16,4.20802841]
[1748583998078,0.04620938,165.18,165.15,31.5]
[1748583998079,6.0531,165.17,165.15,35.70802841]
[1748583998279,0.04620938,165.18,165.15,35.70802841]
[1748584000971,6.0533,165.17,165.15,35.70802841]
[1748584001181,0.04620938,165.18,165.15,35.70802841]
[1748584001882,6.0533,165.17,165.15,35.70802841]
[1748584002877,6.0535,165.16,165.15,35.70802841]
[1748584003483,6.0535,165.16,165.15,31.5]
[1748584003681,6.0538,165.15,165.14,0.04037857]
[1748584010585,6.0538,165.15,165.14,7.857e-05]
[1748584020796,10.26182841,165.15,165.14,7.857e-05]
[1748584037999,0.04620938,165.18,165.14,7.857e-05]
[1748584038298,12.1015,165.24,165.14,7.857e-05]
[1748584038299,31.38,165.24,165.16,4.20802841]
[1748584038496,31.38,165.24,165.18,4.20802841]
[1748584038999,6.0519,165.21,165.18,4.20802841]
[1748584039408,6.09224896,165.21,165.18,4.25399795]
[1748584039905,6.09224896,165.21,165.18,0.04596954]
[1748584040499,6.09224896,165.21,165.18,6.09866954]
[1748584040806,0.04034896,165.21,165.18,0.04596954]
[1748584041102,0.04034896,165.21,165.19,6.0521]
[1748584042496,0.04034896,165.21,165.18,6.09856954]
[1748584042695,0.04034896,165.21,165.18,0.04596954]
[1748584043501,6.09204896,165.21,165.18,6.09866954]
[1748584043907,6.052,165.2,165.18,0.04596954]
[1748584044301,0.04034896,165.21,165.18,0.04596954]
[1748584044503,6.0524,165.19,165.18,0.04596954]
[1748584049308,6.0521,165.2,165.18,0.04596954]
[1748584049512,0.04034896,165.21,165.18,0.04596954]
[1748584049913,6.09194896,165.21,165.18,6.09856954]
[1748584050913,0.04034896,165.21,165.19,6.0523]
[1748584052421,0.04034896,165.21,165.2,6.052]
[1748584053615,6.0507,165.24,165.2,6.052]
[1748584053815,120.62360398,165.25,165.22,6.0509]
[1748584054019,6.0499,165.26,165.22,6.0509]
[1748584054722,6.0502,165.25,165.22,6.0928769]
[1748584055723,6.0506,165.24,165.22,0.0419769]
[1748584056319,6.0509,165.23,165.22,0.0419769]
[1748584060017,6.0509,165.23,165.22,7.69e-05]
[1748584082136,6.0542,165.14,165.13,31.22]
[1748584082336,31.22,165.2,165.1,37.81069537]
[1748584082537,6.0551,165.12,165.1,37.81069537]
[1748584083138,0.04448879,165.13,165.1,37.81069537]
[1748584083339,6.09918879,165.13,165.1,37.85377894]
[1748584083738,6.0549,165.12,165.1,31.26308357]
[1748584084240,0.04448879,165.13,165.1,31.26308357]
[1748584084943,0.04448879,165.13,165.11,6.0553]
[1748584085146,0.04448879,165.13,165.1,31.26308357]
[1748584085340,6.09908879,165.13,165.1,31.26308357]
[1748584085546,0.04448879,165.13,165.1,31.26308357]
[1748584085936,0.04448879,165.13,165.1,37.31848357]
[1748584086135,0.04448879,165.13,165.1,31.26308357]
[1748584087153,0.04448879,165.13,165.11,6.0552]
[1748584098357,6.09918879,165.13,165.1,0.04308357]
[1748584098556,0.04448879,165.13,165.1,0.04308357]
[1748584098957,0.04448879,165.13,165.11,6.0551]
[1748584100557,6.09908879,165.13,165.1,6.09848357]
[1748584101857,0.04448879,165.13,165.11,6.0552]
[1748584102056,0.04448879,165.13,165.1,0.04308357]
[1748584103467,6.0552,165.12,165.1,0.04308357]
[1748584103659,0.04448879,165.13,165.1,0.04308357]
[1748584105160,6.0553,165.11,165.1,0.04308357]
[1748584109063,6.0558,165.1,165.04,553.88]
[1748584109259,6.0558,165.1,165.07,6.0567]
[1748584109765,6.056,165.09,165.06,6.057]
[1748584110262,6.0943909,165.09,165.06,6.099131]
[1748584112261,0.0383909,165.09,165.07,6.0567]
[1748584112467,31.16,165.2,165.08,31.16]
[1748584112668,31.16,165.2,165.08,33.2947]
[1748584113470,0.03933428,165.16,165.12,0.04166513]
[1748584114267,31.19933428,165.16,165.12,0.04166513]
[1748584114470,6.0545,165.13,165.12,0.04166513]
[1748584116160,6.0545,165.13,165.12,6.513e-05]
[1748584117673,6.06,165.13,165.02,31.16]
[1748584117879,31.16,165.12,165.02,31.16]
[1748584118070,31.16,165.12,165.0,2.1162]
[1748584118071,6.59069537,165.11,165.0,2.1162]
[1748584118371,6.59069537,165.08,164.95,31.16]
[1748584118574,0.04593512,165.03,164.95,37.2209]
[1748584119578,6.0599,164.99,164.97,0.04232347]
[1748584120171,6.06,164.98,164.97,0.04232347]
[1748584120371,0.03876429,165.0,164.92,31.16]
[1748584120575,31.16,165.02,164.92,31.16]
[1748584121175,6.59069537,165.01,164.89,33.13]
[1748584121369,0.0426121,164.97,164.94,0.03939502]
[1748584121881,6.0611,164.95,164.94,0.03939502]
[1748584123979,6.0611,164.95,164.94,9.502e-05]
[1748584131085,6.0647,164.86,164.82,31.2]
[1748584131695,6.065,164.85,164.82,31.2]
[1748584131890,37.79069537,164.92,164.82,31.2]
[1748584132103,0.0391542,164.89,164.85,0.04577341]
[1748584132397,6.0645,164.86,164.85,0.04577341]
[1748584135004,6.0645,164.86,164.85,7.341e-05]
[1748584138602,6.59069537,164.85,164.74,31.14]
[1748584138804,31.14,164.84,164.74,31.14]
[1748584139002,37.1867,164.84,164.74,31.14]
[1748584139305,6.0684,164.76,164.74,31.14]
[1748584139612,0.04469521,164.77,164.74,31.14]
[1748584139804,0.04469521,164.77,164.74,31.18028579]
[1748584139805,6.0681,164.76,164.74,31.18028579]
[1748584140102,0.04617079,164.77,164.74,0.04028579]
[1748584140409,0.04617079,164.77,164.69,2.1185]
[1748584140704,31.16,164.76,164.69,2.1185]
[1748584140905,6.0703,164.7,164.69,2.1185]
[1748584141398,0.04181402,164.71,164.69,8.1985]
[1748584141599,6.069,164.74,164.69,14.77959537]
[1748584141811,18.1776,164.84,164.69,14.77959537]
[1748584141812,31.16,164.8,164.69,8.70919537]
[1748584142003,18.1776,164.84,164.69,8.70919537]
[1748584142207,31.16,164.83,164.69,8.70919537]
[1748584142903,6.0681,164.77,164.74,0.04181403]
[1748584143100,0.04656951,164.78,164.74,0.04181403]
[1748584143501,31.16,164.85,164.75,6.59069537]
[1748584143700,31.16,164.85,164.76,4.1607]
[1748584143903,31.16,164.85,164.77,31.16]
[1748584144615,6.0666,164.81,164.79,0.04277113]
[1748584145013,0.04161664,164.83,164.79,0.04277113]
[1748584145209,6.10731664,164.83,164.79,0.04277113]
[1748584146010,0.04161664,164.83,164.79,0.04277113]
[1748584146913,6.0667,164.8,164.79,0.04277113]
[1748584147316,0.04161664,164.83,164.79,0.04277113]
[1748584148314,6.0667,164.8,164.79,0.04277113]
[1748584152118,6.0667,164.8,164.79,7.113e-05]
[1748584155611,6.0664,164.81,164.79,7.113e-05]
[1748584156418,6.066,164.82,164.79,7.113e-05]
[1748584156823,0.04161664,164.83,164.79,7.113e-05]
[1748584157226,6.066,164.82,164.79,7.113e-05]
[1748584157722,0.04161664,164.83,164.79,7.113e-05]
[1748584158825,6.0662,164.82,164.79,7.113e-05]
[1748584159125,0.04161664,164.83,164.79,7.113e-05]
[1748584159524,6.066,164.82,164.79,7.113e-05]
[1748584159724,0.04161664,164.83,164.79,7.113e-05]
[1748584160720,6.0664,164.81,164.79,7.113e-05]
[1748584161527,0.04161664,164.83,164.79,7.113e-05]
[1748584162121,6.0666,164.81,164.79,7.113e-05]
[1748584166621,6.0661,164.82,164.79,6.06707113]
[1748584166826,0.04161664,164.83,164.79,7.113e-05]
[1748584167330,6.10741664,164.83,164.79,6.06687113]
[1748584167534,0.04161664,164.83,164.79,6.06687113]
[1748584167829,0.04161664,164.83,164.79,12.6575665]
[1748584169032,6.066,164.82,164.79,12.6575665]
[1748584169430,0.04161664,164.83,164.8,6.0666]
[1748584170435,6.0646,164.86,164.82,6.59069537]
[1748584170623,6.0646,164.86,164.82,37.71069537]
[1748584171433,6.10501898,164.86,164.82,37.75639914]
[1748584171640,6.10501898,164.86,164.83,6.0655]
[1748584171825,6.10501898,164.86,164.82,37.75639914]
[1748584172637,6.10501898,164.86,164.82,43.82219914]
[1748584173838,0.04041898,164.86,164.82,37.75639914]
[1748584174338,0.04041898,164.86,164.83,6.0653]
[1748584174730,0.04041898,164.86,164.82,37.75639914]
[1748584174931,0.04041898,164.86,164.82,31.16570377]
[1748584175134,6.0655,164.84,164.82,31.16570377]
[1748584176335,6.065,164.85,164.82,37.23160377]
[1748584178339,6.10501898,164.86,164.82,37.23160377]
[1748584178539,6.10501898,164.86,164.83,8.0505]
[1748584178540,0.04041898,164.86,164.83,8.0505]
[1748584179039,0.04041898,164.86,164.84,12.65579537]
[1748584180645,0.04041898,164.86,164.84,6.0651]
[1748584181736,0.04041898,164.86,164.83,8.0504]
[1748584181935,6.10491898,164.86,164.83,14.66764338]
[1748584183742,0.04041898,164.86,164.82,35.37260377]
[1748584184038,0.04041898,164.86,164.82,31.16570377]
[1748584184238,6.0656,164.83,164.82,31.16570377]
[1748584184742,0.04041898,164.86,164.82,31.16570377]
[1748584185544,6.0649,164.85,164.82,31.16570377]
[1748584185741,0.04041898,164.86,164.82,31.16570377]
[1748584186243,6.0656,164.83,164.82,31.16570377]
[1748584200367,6.0656,164.83,164.82,0.04570377]
[1748584201261,6.0656,164.83,164.82,3.77e-06]
[1748584205564,12.1256,164.83,164.82,3.77e-06]
[1748584205867,6.0689,164.74,164.73,31.08]
[1748584206463,6.0686,164.75,164.73,31.08]
[1748584207271,0.04290996,164.76,164.73,31.08]
[1748584208265,6.0688,164.75,164.73,31.08]
[1748584208461,0.04290996,164.76,164.73,37.70170229]
[1748584209668,0.04290996,164.76,164.74,6.0689]
[1748584210071,0.04290996,164.76,164.73,37.70170229]
[1748584210571,0.04290996,164.76,164.75,6.0685]
[1748584211070,0.04290996,164.76,164.74,6.0688]
[1748584211269,0.04290996,164.76,164.73,37.70170229]
[1748584211774,0.04290996,164.76,164.74,6.0686]
[1748584213174,0.04290996,164.76,164.75,6.0685]
[1748584213376,0.04290996,164.76,164.73,37.70170229]
[1748584214077,0.04290996,164.76,164.74,6.0687]
[1748584214876,0.04290996,164.76,164.75,6.0685]
[1748584215077,6.0671,164.79,164.74,1.9806]
[1748584215678,6.0671,164.79,164.76,6.0681]
[1748584216079,6.11344846,164.79,164.76,6.11475701]
[1748584216477,0.04634846,164.79,164.76,6.11475701]
[1748584216878,0.04634846,164.79,164.76,0.04665701]
[1748584217382,0.04634846,164.79,164.77,6.0676]
[1748584217772,0.04634846,164.79,164.77,37.1476]
[1748584219582,0.04634846,164.79,164.77,31.08]
[1748584226181,6.11344846,164.79,164.77,31.08]
[1748584229386,0.04634846,164.79,164.77,31.08]
[1748584230389,6.11364846,164.79,164.77,31.08]
[1748584230587,0.04634846,164.79,164.76,0.04665701]
[1748584230887,6.0678,164.77,164.76,0.04665701]
[1748584239494,6.0674,164.78,164.76,0.04665701]
[1748584239687,0.04634846,164.79,164.76,0.04665701]
[1748584240089,0.04634846,164.79,164.77,6.0675]
[1748584240286,0.04634846,164.79,164.78,31.04]
[1748584252002,0.04634846,164.79,164.78,35.27948683]
[1748584255306,0.04634846,164.79,164.78,41.34688683]
[1748584259712,0.04634846,164.79,164.78,35.27948683]
[1748584260707,6.11334846,164.79,164.78,31.04]
[1748584260912,0.04634846,164.79,164.76,0.04665701]
[1748584261314,6.0678,164.77,164.76,0.04665701]
[1748584261816,6.0676,164.78,164.76,0.04665701]
[1748584262313,6.11344846,164.79,164.76,0.04665701]
[1748584262510,0.04634846,164.79,164.76,0.04665701]
[1748584262917,0.04634846,164.79,164.76,6.11475701]
[1748584263114,0.04634846,164.79,164.76,0.04665701]
[1748584264716,0.04634846,164.79,164.78,6.0674]
[1748584266114,0.04634846,164.79,164.77,6.0677]
[1748584267618,0.04634846,164.79,164.76,6.11465701]
[1748584268124,0.04634846,164.79,164.77,31.0]
[1748584268822,0.04634846,164.79,164.77,37.0675]
[1748584269316,0.04634846,164.79,164.78,6.0674]
[1748584269720,0.04634846,164.79,164.77,31.0]
[1748584270321,0.04634846,164.79,164.77,37.0675]
[1748584272019,0.04634846,164.79,164.78,6.0674]
[1748584274231,0.04634846,164.79,164.77,37.0676]
[1748584276230,0.04634846,164.79,164.78,6.0674]
[1748584281229,0.04634846,164.79,164.77,31.0]
[1748584281934,6.0674,164.78,164.77,31.0]
[1748584282735,6.0678,164.77,164.76,0.04665701]
[1748584284036,6.0676,164.78,164.76,0.04665701]
[1748584284234,0.04634846,164.79,164.76,0.04665701]
[1748584284638,6.0678,164.77,164.76,0.04665701]
[1748584285027,6.0678,164.77,164.73,6.0689]
[1748584285028,0.04634846,164.79,164.71,31.0]
[1748584285333,4.0729,164.78,164.71,31.0]
[1748584285531,4.0729,164.78,164.68,37.071]
[1748584286032,0.04340322,164.75,164.71,0.03784936]
[1748584286741,6.0696,164.72,164.71,0.03784936]
[1748584292050,6.0693,164.73,164.71,0.03784936]
[1748584292641,0.04340322,164.75,164.71,0.03784936]
[1748584293544,6.069,164.74,164.71,0.03784936]
[1748584293946,0.04340322,164.75,164.71,0.03784936]
[1748584295552,6.0694,164.73,164.71,0.03784936]
[1748584298058,0.04340322,164.75,164.71,0.03784936]
[1748584298059,6.069,164.74,164.71,0.03784936]
[1748584298552,6.0693,164.73,164.71,0.03784936]
[1748584298754,0.04340322,164.75,164.71,0.03784936]
[1748584298954,6.0691,164.74,164.71,0.03784936]
[1748584300451,6.0695,164.73,164.71,0.03784936]
[1748584301260,6.069,164.74,164.71,0.03784936]
[1748584301654,0.04340322,164.75,164.71,0.03784936]
[1748584302760,0.04340322,164.75,164.72,30.96]
[1748584303353,0.04340322,164.75,164.74,6.0689]
[1748584303754,33.0326,164.83,164.73,6.62756379]
[1748584304054,33.0326,164.83,164.76,6.0678]
[1748584304055,6.0669,164.8,164.76,6.0678]
[1748584304359,2.0726,164.83,164.76,30.96]
[1748584304857,34.9731,164.86,164.78,0.03869844]
[1748584304858,0.04434928,164.81,164.78,0.03869844]
[1748584305455,0.04434928,164.81,164.79,6.067]
[1748584306254,0.04434928,164.81,164.78,0.03869844]
[1748584306648,6.11074928,164.81,164.78,0.03869844]
[1748584307057,0.04434928,164.81,164.78,0.03869844]